[Event "Mitropa Cup Open 2022"]
[Site "Corte"]
[Date "2022.05.07"]
[Round "8.2"]
[White "Krastev, Alexander"]
[Black "Pelletier, Yannick"]
[Result "1/2-1/2"]
[ECO "C02"]
[WhiteElo "2412"]
[BlackElo "2556"]
[Annotator "TA"]
[PlyCount "221"]
[EventDate "2022.04.30"]
[EventType "team-tourn"]
[EventCountry "FRA"]
[SourceTitle "playchess.com"]
[Source "ChessBase"]
[SourceQuality "1"]
[WhiteTeam "Germany"]
[BlackTeam "Switzerland"]
[WhiteTeamCountry "GER"]
[BlackTeamCountry "SUI"]
[TimeControl "40/5400+30:1800+30"]

{[%evp 91,221,512,457,430,271,8,8,8,8,8,792,16,16,0,0,0,0,0,0,0,0,0,0,0,0,0,0,0,568,16,16,16,16,8,16,16,16,0,0,0,0,0,0,0,0,0,0,0,0,0,0,0,0,0,0,0,0,0,0,0,0,0,0,0,0,0,0,0,0,0,0,0,0,0,0,0,0,0,0,0,0,0,0,0,0,0,0,0,0,0,0,0,0,0,0,0,0,0,0,0,0,0,0,0,0,0,0,0,0,0,0,0,0,0,0,0,16,16,16,16,16,0,0,0,0,9,16,0,0,0,0,8]} 1. e4 {[%emt 0:00:03]} e6 {[%emt 0:00:13]} 2. d4 {[%emt 0:00:39]} d5 {[%emt 0:00:07]} 3. e5 {[%emt 0:00:07]} c5 {[%emt 0:00:05]} 4. c3 {[%emt 0:00:04]} Nc6 {[%emt 0:00:03]} 5. Nf3 {[%emt 0:00:06]} Bd7 {[%emt 0:00:23]} 6. Be2 {[%emt 0:00:47]} Nge7 {[%emt 0:07:19]} 7. Na3 {[%emt 0:00:15]} cxd4 {[%emt 0:04:06]} 8. cxd4 {[%emt 0:02:25]} Nf5 {[%emt 0:00:07]} 9. Nc2 {[%emt 0:00:11]} Qb6 {[%emt 0:01:08]} 10. O-O {[%emt 0:02:12]} Na5 {[%emt 0:02:12]} 11. g4 {[%emt 0:25:04]} Ne7 {[%emt 0:00:10]} 12. Nfe1 {[%emt 0:00:22]} Bb5 {[%emt 0:07:04]} 13. Nd3 {[%emt 0:10:11]} Nac6 {[%emt 0:15:19]} 14. a4 {[%emt 0:11:38]} Bc4 {[%emt 0:00:58]} 15. Be3 {[%emt 0:03:23]} h5 {[%emt 0:03:43]} 16. h3 {[%emt 0:00:09]} hxg4 {[%emt 0:18:07]} 17. hxg4 {[%emt 0:01:34]} g5 {[%emt 0:03:32]} 18. b3 {[%emt 0:07:14]} Bxb3 {[%emt 0:15:31]} 19. Nc5 {[%emt 0:04:24]} Bxc2 {[%emt 0:00:29]} 20. Qxc2 {[%emt 0:00:09]} Qc7 {[%emt 0:00:59]} 21. Rfc1 {[%emt 0:04:39]} Na5 {[%emt 0:08:23]} 22. Rab1 {[%emt 0:04:29]} Rc8 {[%emt 0:10:09]} 23. Nxb7 {[%emt 0:11:43]} Qxc2 {[%emt 0:00:05]} 24. Bb5+ {[%emt 0:00:15]} Nec6 {[%emt 0:00:37]} 25. Rxc2 {[%emt 0:00:36]} Nc4 {[%emt 0:00:00]} 26. Rxc4 {[%emt 0:06:33]} dxc4 {[%emt 0:00:04]} 27. Na5 {[%emt 0:00:09]} Kd7 {[%emt 0:00:02]} 28. Rc1 {[%emt 0:00:56]} a6 {[%emt 0:00:28]} 29. Bxc6+ {[%emt 0:00:07]} Rxc6 {[%emt 0:00:02]} 30. Nxc6 {[%emt 0:00:06]} Kxc6 {[%emt 0:00:03]} 31. Rxc4+ {[%emt 0:00:06]} Kd7 {[%emt 0:03:33]} 32. Bxg5 {[%emt 0:04:53]} Rg8 {[%emt 0:00:04]} 33. f4 {[%emt 0:00:06]} Be7 {[%emt 0:00:07]} 34. Bxe7 {[%emt 0:00:38]} Rxg4+ {[%emt 0:00:05]} 35. Kf2 {[%emt 0:00:03]} Kxe7 {[%emt 0:00:05]} 36. Kf3 {[%emt 0:00:05]} Rg1 {[%emt 0:00:12]} 37. Rc7+ {[%emt 0:00:23]} Ke8 {[%emt 0:00:30]} 38. Ra7 {[%emt 0:01:19]} Rd1 {[%emt 0:01:42]} 39. Ke3 {[%emt 0:00:18]} Re1+ {[%emt 0:00:06]} 40. Kd3 {[%emt 0:00:35]} Rf1 {[%emt 0:01:15]} 41. Rxa6 {[%emt 0:12:30]} Rxf4 {[%emt 0:00:10]} 42. Rd6 {[%emt 0:01:05]} Ke7 {[%emt 0:09:47]} 43. a5 {[%emt 0:11:08]} Rf3+ {[%emt 0:15:20]} 44. Kc4 {[%emt 0:03:08]} Ra3 {[%emt 0:00:30]} 45. Kb5 {[%emt 0:02:38]} f5 {[%emt 0:00:19]} 46. Rc6 {[%emt 0:01:48]} f4 {[%emt 0:03:00]} 47. Rc7+ {[%emt 0:00:25]} Ke8 {[%emt 0:00:02]} 48. a6 $2 {[%emt 0:02:08]} (48. Rc2 $18) 48... f3 $11 {[%emt 0:00:22]} 49. Rc2 {[%emt 0:00:28]} Kd7 {[%emt 0:03:22]} 50. Rh2 {[%emt 0:00:32]} Ke7 $2 {[%emt 0:00:42][%mdl 8192] [#]} (50... Kc7 $11) 51. Kb6 $2 {[%emt 0:00:39]} (51. Rb2 $1 $18 {Strongly threatening Kb6.} Kf7 52. Rf2) 51... Rb3+ $1 $11 {[%emt 0:00:46]} 52. Kc6 {[%emt 0:00:09]} Rc3+ {[%emt 0:00:10]} 53. Kb7 {[%emt 0:00:14]} Rb3+ {[%emt 0:00:22]} 54. Kc7 {[%emt 0:00:10]} Rc3+ {[%emt 0:00:06]} 55. Kb8 {[%emt 0:00:03]} Rb3+ {[%emt 0:00:05]} 56. Kc8 {[%emt 0:00:55]} Rc3+ {[%emt 0:00:11]} 57. Kb7 {[%emt 0:00:03]} Rb3+ {[%emt 0:00:07]} 58. Kc6 $2 {[%emt 0:00:12][%mdl 8192]} (58. Ka7 $11) 58... Rc3+ $18 {[%emt 0:00:13]} 59. Kb5 {[%emt 0:00:26]} Ra3 {[%emt 0:00:04] [#]} 60. a7 $2 {[%emt 0:02:17]} (60. Rb2 $1 $18) 60... f2 $1 $11 {[%emt 0:00:10]} 61. Rxf2 {[%emt 0:00:29]} Rxa7 {[%emt 0:00:04]} 62. Rh2 {[%emt 0:00:08]} Ra1 {[%emt 0:01:21]} 63. Rh7+ {[%emt 0:00:05]} Ke8 {[%emt 0:01:09]} 64. Rb7 {[%emt 0:00:20]} Rc1 {[%emt 0:00:55]} 65. Ra7 {[%emt 0:00:53]} Rc2 {[%emt 0:00:35]} 66. Ra4 {[%emt 0:00:58]} Kd7 {[%emt 0:00:05]} 67. Ra7+ {[%emt 0:00:21]} Ke8 {[%emt 0:00:29]} 68. Ra6 {[%emt 0:00:41]} Kd7 {[%emt 0:00:48]} 69. Rd6+ {[%emt 0:00:15]} Ke7 {[%emt 0:00:02]} 70. Kb6 {[%emt 0:00:18]} Rc4 {[%emt 0:00:23]} 71. Kb5 {[%emt 0:00:22]} Rc1 {[%emt 0:00:12]} 72. Rc6 {[%emt 0:00:11]} Rb1+ {[%emt 0:00:42]} 73. Kc5 {[%emt 0:00:04]} Rc1+ {[%emt 0:00:17]} 74. Kb6 {[%emt 0:00:07]} (74. Kb5 $5 {[%cal Rc6c1]} Rd1 75. Rc4 $14) 74... Rb1+ {[%emt 0:00:07]} 75. Kc7 {[%emt 0:02:09]} Rb4 {[%emt 0:00:19]} 76. Rd6 {[%emt 0:00:03]} Rc4+ {[%emt 0:00:05]} 77. Kb7 {[%emt 0:00:26]} Rb4+ {[%emt 0:00:21]} 78. Kc6 {[%emt 0:00:12]} Rc4+ {[%emt 0:00:09]} 79. Kb5 {[%emt 0:00:13]} Rc1 {[%emt 0:00:10]} 80. Ka5 {[%emt 0:01:07]} Rc4 {[%emt 0:00:43]} 81. Kb6 {[%emt 0:00:11]} Rc1 {[%emt 0:00:15]} 82. Rc6 {[%emt 0:01:10]} Rb1+ {[%emt 0:00:14]} 83. Ka5 {[%emt 0:00:06]} Ra1+ {[%emt 0:02:19]} 84. Kb5 {[%emt 0:00:27]} Rb1+ {[%emt 0:00:11]} 85. Ka4 {[%emt 0:00:03]} Kd7 {[%emt 0:02:31]} 86. Rc4 {[%emt 0:00:06]} Rb2 {[%emt 0:00:49]} 87. Rb4 {[%emt 0:00:15]} Ra2+ {[%emt 0:00:51]} 88. Kb3 {[%emt 0:00:04]} Ra1 {[%emt 0:00:29]} 89. Ra4 {[%emt 0:01:37]} Rc1 {[%emt 0:00:26]} 90. Rc4 {[%emt 0:00:03]} Ra1 {[%emt 0:00:15]} 91. Rc3 {[%emt 0:01:10]} Rd1 {[%emt 0:00:31]} 92. Rc4 {[%emt 0:00:26]} Ra1 {[%emt 0:00:19]} 93. Kb4 {[%emt 0:00:00]} Rb1+ {[%emt 0:00:59]} 94. Kc5 {[%emt 0:00:00]} Rb2 {[%emt 0:00:36]} 95. Rc1 {[%emt 0:00:00]} Rb8 {[%emt 0:00:25]} 96. Rc3 {[%emt 0:00:00]} Rb1 {[%emt 0:01:00]} 97. Kc4 {[%emt 0:00:00]} Rd1 {[%emt 0:00:17]} 98. Ra3 {[%emt 0:00:32]} Rc1+ {[%emt 0:00:26]} 99. Kd3 {[%emt 0:00:04]} Rh1 {[%emt 0:00:56]} 100. Ra7+ {[%emt 0:00:04]} Ke8 {[%emt 0:00:18]} 101. Ke3 {[%emt 0:03:54]} Rh3+ {[%emt 0:01:23]} 102. Kf4 {[%emt 0:00:34]} Rh4+ {[%emt 0:00:04]} 103. Kg5 {[%emt 0:01:05]} Rxd4 {[%emt 0:00:06]} 104. Kf6 {[%emt 0:00:04]} Rb4 {[%emt 0:01:39]} 105. Ra6 {[%emt 0:00:37]} Rh4 $1 {[%emt 0:00:41]} 106. Rxe6+ {[%emt 0:00:56]} Kf8 {[%emt 0:00:31]} 107. Rd6 {[%emt 0:00:26]} Ke8 {[%emt 0:00:22]} (107... Rh6+ 108. Kf5 Rh1 109. Ra6) 108. Ke6 {[%emt 0:00:11]} Rh1 {[%emt 0:00:40]} (108... Rh6+ 109. Kd5 Rh7 110. Re6+ Kf8 111. Rf6+ Ke8 112. Ra6) 109. Kf6 {[%emt 0:01:05]} Rh6+ {[%emt 0:00:31]} 110. Kf5 {[%emt 0:00:04]} Rxd6 {[%emt 0:00:29]} 111. exd6 {[%emt 0:00:05]} 1/2-1/2

[Event "Mitropa Cup Open 2022"]
[Site "Corte"]
[Date "2022.05.07"]
[Round "8.2"]
[White "Humeau, Cyril"]
[Black "Sonis, Francesco"]
[Result "0-1"]
[ECO "B22"]
[WhiteElo "2290"]
[BlackElo "2547"]
[Annotator "TA"]
[PlyCount "64"]
[EventDate "2022.04.30"]
[EventType "team-tourn"]
[EventCountry "FRA"]
[SourceTitle "playchess.com"]
[Source "ChessBase"]
[SourceQuality "1"]
[WhiteTeam "France"]
[BlackTeam "Italy"]
[WhiteTeamCountry "FRA"]
[BlackTeamCountry "ITA"]
[TimeControl "40/5400+30:1800+30"]

{[%evp 9,64,6,8,6,9,22,26,22,31,2,14,0,39,19,26,33,5,17,88,0,49,0,0,0,0,0,0,0,0,0,0,0,-6,0,24,24,23,0,51,17,51,4,13,0,0,0,0,-224,-222,-471,-454,-475,-400,-455,-460,-435,-431]} 1. e4 {[%emt 0:00:04][%cal Be2e4,Be4e5][%mdl 32]} c5 {[%emt 0:00:10]} 2. c3 {[%emt 0:00:05]} Nf6 {[%emt 0:00:28]} 3. e5 {[%emt 0:00:05]} Nd5 {[%emt 0:00:06]} 4. Bc4 {[%emt 0:00:03]} Nb6 {[%emt 0:01:37]} 5. Bb3 {[%emt 0:00:06]} d5 {[%emt 0:00:54]} 6. exd6 {[%emt 0:00:07] B22: Sicilian: 2 c3.} Qxd6 {[%emt 0:00:11]} 7. Nf3 $1 {[%emt 0:00:06]} c4 {[%emt 0:01:14]} 8. Bc2 {[%emt 0:00:17] White has an edge.} Bg4 {[%emt 0:00:22]} 9. O-O {[%emt 0:00:09] [#]} Qd5 $146 {[%emt 0:02:44]} ({Predecessor:} 9... Nc6 10. Re1 Ne5 11. Rxe5 Bxf3 12. Qe1 Bd5 13. b3 f6 14. Re3 Qc6 15. Be4 e5 {½-½ (30) Eriksson,C (2121)-Neuman,P (2371) Prague 2020}) 10. d4 {[%emt 0:06:35]} Bxf3 {[%emt 0:04:11]} (10... cxd3 $5 11. Qxd3 Bxf3 12. Qxf3 Qxf3 13. gxf3 e6 $11) 11. Qxf3 {[%emt 0:00:18]} Qxf3 {[%emt 0:00:06]} 12. gxf3 {[%emt 0:00:06]} Nc6 {[%emt 0:01:32]} 13. Re1 {[%emt 0:04:39]} g6 {[%emt 0:02:47] [#]} (13... e6 $11) 14. Na3 {[%emt 0:02:22]} (14. a4 $1 $16) 14... Bg7 {[%emt 0:04:38]} (14... e6 $11) 15. b3 {[%emt 0:03:03]} (15. Be4 $14) 15... cxb3 $11 {[%emt 0:01:43]} 16. axb3 {[%emt 0:00:30]} Nd5 {[%emt 0:05:05]} 17. Bd2 O-O {[%emt 0:03:47]} 18. Be4 {[%emt 0:09:14]} Rad8 {[%emt 0:06:52]} 19. Nc4 {[%emt 0:03:57]} f5 {[%emt 0:07:34]} 20. Bxd5+ {[%emt 0:00:30]} Rxd5 {[%emt 0:00:30]} 21. f4 {[%emt 0:05:19]} b6 {[%emt 0:14:11]} 22. Kf1 {[%emt 0:09:20]} Rc8 {[%emt 0:02:21][%cal Bf8c8,Bc8c7,Bc7d7][%mdl 32]} 23. Ke2 {[%emt 0:05:32]} Rb5 {[%emt 0:13:08]} (23... b5 $11 24. Ne3 Rd7) 24. Ra3 {[%emt 0:04:46]} Rc7 {[%emt 0:07:09]} 25. Rea1 {[%emt 0:11:17]} (25. Ne5 $14 Ra5 26. Rxa5 Nxa5 27. Rb1) 25... e6 {[%emt 0:03:32]} 26. Nd6 {[%emt 0:09:22]} Rd5 {[%emt 0:00:27]} 27. Ne8 {[%emt 0:00:10]} Rcd7 {[%emt 0:01:13] [#] And now ...Bh8 would win.} 28. Ra6 $2 {[%emt 0:01:32]} (28. Nxg7 $11 {and White stays safe.} Kxg7 29. Ra6) 28... Bh8 $19 {[%emt 0:00:49][%cal Bg7h8,Bh8d4,Bd4c5][%mdl 32]} 29. Be3 $2 {[%emt 0:04:42]} (29. R6a4 {keeps fighting.} Kf7 30. Rc4 Nxd4+ 31. cxd4 Bxd4 32. Nc7 Bxa1 33. Nxd5 exd5 34. Rc6) 29... Kf7 {[%emt 0:00:47]} 30. c4 Rxd4 31. Bxd4 {[%emt 0:01:20]} Bxd4 {[%emt 0:00:40]} (31... Nxd4+ $2 32. Kf1 Nc6 33. Re1 $19) 32. R1a4 {[%emt 0:00:19]} Bc5 {[%emt 0:00:50] Weighted Error Value: White=0.38/Black=0.20 (precise)} ({Don't blunder} 32... Kxe8 $2 33. b4 $19) 0-1

[Event "Mitropa Cup Open 2022"]
[Site "Corte"]
[Date "2022.05.07"]
[Round "8.3"]
[White "Lodici, Lorenzo"]
[Black "Roux, Baptiste"]
[Result "1-0"]
[ECO "B40"]
[WhiteElo "2549"]
[BlackElo "2072"]
[Annotator "TA"]
[PlyCount "121"]
[EventDate "2022.04.30"]
[EventType "team-tourn"]
[EventCountry "FRA"]
[SourceTitle "playchess.com"]
[Source "ChessBase"]
[SourceQuality "1"]
[WhiteTeam "Italy"]
[BlackTeam "France"]
[WhiteTeamCountry "ITA"]
[BlackTeamCountry "FRA"]
[TimeControl "40/5400+30:1800+30"]

{[%evp 9,121,16,18,17,26,25,57,48,46,20,20,19,29,18,21,9,15,0,0,0,24,20,43,28,36,35,33,0,2,2,6,2,10,0,0,0,0,0,0,0,0,0,0,0,0,0,0,0,0,0,0,0,20,16,20,20,21,21,40,29,28,33,58,33,75,33,33,26,93,29,37,0,96,100,114,100,107,102,106,89,90,85,144,85,85,97,270,226,418,404,357,138,83,101,183,183,299,145,145,145,135,145,1060,768,603,603,1976,1866,1702,1697,4627,4627,4610,4610]} 1. e4 {[%emt 0:00:04]} c5 {[%emt 0:00:09]} 2. Nf3 {[%emt 0:00:06]} e6 {[%emt 0:01:28]} 3. g3 {[%emt 0:00:20]} Nc6 {[%emt 0:07:19]} 4. Bg2 {[%emt 0:01:26]} d5 {[%emt 0:03:47]} 5. exd5 {[%emt 0:00:06]} exd5 {[%emt 0:03:00]} 6. O-O {[%emt 0:04:12] B40: Sicilian: 2...e6, Unusual lines.} Bg4 {[%emt 0:02:33]} 7. h3 {[%emt 0:01:00]} Bh5 {[%emt 0:00:09]} 8. d4 {[%emt 0:06:33] White is slightly better.} cxd4 {[%emt 0:12:52]} 9. Nbd2 {[%emt 0:09:22]} Bc5 {[%emt 0:07:05]} 10. Nb3 {[%emt 0:02:24]} Bb6 {[%emt 0:00:07]} 11. g4 {[%emt 0:07:29]} (11. a4 $5 {[%cal Ra4a5]}) 11... Bg6 {[%emt 0:00:06]} 12. Nfxd4 {[%emt 0:00:30]} Nge7 {[%emt 0:03:13] [#]} 13. Bf4 $146 {[%emt 0:02:52]} ({Predecessor:} 13. Be3 h5 14. a4 hxg4 15. Qxg4 O-O 16. Rad1 Qc8 17. f4 Nf5 18. Bf2 Nfxd4 19. Nxd4 Bxd4 20. Bxd4 Qxg4 21. hxg4 Bxc2 {0-1 (81) Kobalia,M (2614)-Jumabayev,R (2654) Chess.com INT 2020}) 13... O-O {[%emt 0:01:56]} 14. c3 {[%emt 0:01:07]} Qd7 {[%emt 0:07:35]} 15. Re1 {[%emt 0:02:32]} Rfe8 {[%emt 0:02:31]} 16. a4 {[%emt 0:06:07][%cal Ba2a4,Ba4a5][%mdl 32]} Nxd4 $1 {[%emt 0:07:52]} 17. Nxd4 {[%emt 0:01:08]} Nc6 {[%emt 0:01:19]} 18. Nxc6 {[%emt 0:01:50]} bxc6 {[%emt 0:01:28]} 19. a5 {[%emt 0:01:19]} Rxe1+ {[%emt 0:01:25]} 20. Qxe1 {[%emt 0:00:10]} Re8 {[%emt 0:04:00]} 21. Qd2 {[%emt 0:00:16]} Bc7 {[%emt 0:01:38]} 22. b4 {[%emt 0:01:56]} h5 {[%emt 0:03:40]} 23. Rd1 {[%emt 0:09:14]} hxg4 {[%emt 0:00:49]} 24. hxg4 {[%emt 0:00:05]} Bc2 {[%emt 0:10:49]} 25. Rc1 {[%emt 0:01:04]} Bxf4 {[%emt 0:00:05]} 26. Qxf4 {[%emt 0:00:05]} Bd3 {[%emt 0:00:07]} 27. Bf3 {[%emt 0:09:43]} Re7 {[%emt 0:06:35]} 28. Kg2 {[%emt 0:01:28]} Qe6 {[%emt 0:01:44]} 29. Kg3 {[%emt 0:04:49]} Qe5 {[%emt 0:00:33]} 30. g5 {[%emt 0:08:05]} f6 {[%emt 0:02:21]} 31. Qxe5 {[%emt 0:00:53]} fxe5 $11 {[%emt 0:04:59][%mdl 4096] Endgame KRB-KRB} 32. Rd1 {[%emt 0:00:07]} Bc4 {[%emt 0:00:21]} 33. Bh5 {[%emt 0:00:25]} Re6 {[%emt 0:01:08]} 34. Bg4 {[%emt 0:02:11]} Re7 {[%emt 0:01:17]} 35. g6 {[%emt 0:00:39]} a6 {[%emt 0:00:47]} 36. Bf5 {[%emt 0:01:18]} Bb5 {[%emt 0:00:44]} 37. Kf3 {[%emt 0:04:36]} Kf8 {[%emt 0:00:32]} 38. Rh1 {[%emt 0:00:05][%cal Rh1h8]} Re8 {[%emt 0:00:31]} (38... Rc7 $1 $11 {remains equal.}) 39. Re1 {[%emt 0:04:28]} ({Better is} 39. Rh7 $1 $16) 39... Re7 {[%emt 0:00:28]} 40. Rh1 {[%emt 0:03:05]} (40. Kg4 $14) 40... Re8 $16 {[%emt 0:00:06]} 41. Rh7 $1 {[%emt 0:31:33]} Kg8 {[%emt 0:02:42]} 42. Ke3 {[%emt 0:00:00] Inhibits d4+.} Kf8 {[%emt 0:03:46]} 43. f3 {[%emt 0:00:00]} Kg8 {[%emt 0:00:25]} 44. Rh5 {[%emt 0:00:00] White is more active.} Re7 {[%emt 0:02:50]} 45. Bb1 {[%emt 0:00:00]} Bc4 {[%emt 0:02:27]} (45... Re6 $142) 46. Bd3 {[%emt 0:00:00]} ({White should play} 46. Rf5) 46... Bb5 {[%emt 0:07:15]} 47. Rf5 {[%emt 0:00:00]} d4+ $2 {[%emt 0:06:42]} (47... Re6 $16) 48. Kd2 {[%emt 0:00:00]} dxc3+ {[%emt 0:00:52]} (48... Bxd3 49. Kxd3 dxc3 50. Kxc3 Re6) 49. Kxc3 $18 {[%emt 0:00:00] Hoping for Bb1.} Re6 {[%emt 0:03:50]} 50. Bc4 $2 {[%emt 0:00:00]} (50. Rf7 $1 $18 {is the precise move to win.}) 50... Bxc4 $16 {[%emt 0:00:11]} 51. Kxc4 {[%emt 0:00:00] Kc5 is the strong threat.} Rxg6 {[%emt 0:00:08]} 52. Rxe5 {[%emt 0:00:00] And now Re7 would win. KR-KR} Rf6 {[%emt 0:00:35]} (52... Kf7 {was worth a try.} 53. Kc5 Rf6) 53. Re8+ {[%emt 0:04:20]} (53. Re7 $1 $18 {[%cal Re7a7]}) 53... Kf7 {[%emt 0:00:38] [#]} 54. Ra8 {[%emt 0:00:04]} Ke6 {[%emt 0:04:28]} (54... Rf4+ $2 55. Kc5 Rxf3 56. Rxa6 Rc3+ 57. Kd6) 55. Rxa6 {[%emt 0:03:10]} Kd6 {[%emt 0:00:44][%mdl 8192]} (55... Kd7 $16 56. Ra7+ Kd6 57. Rxg7 Rf4+ 58. Kb3 Rxf3+ 59. Ka4 Rf1) 56. b5 $18 {[%emt 0:01:35][%cal Bb4b5,Bb5b6,Bb6b7][%mdl 32] White is clearly winning.} Rf4+ {[%emt 0:00:05]} 57. Kd3 {[%emt 0:00:16]} Kc5 {[%emt 0:00:29] [#]} 58. b6 {[%emt 0:00:26] Threatens to win with b7.} Rxf3+ {[%emt 0:00:28]} 59. Ke4 {[%emt 0:00:03]} Rf8 {[%emt 0:00:16]} 60. b7 {[%emt 0:01:57] White threatens Ra8 and mate.} Rb8 {[%emt 0:00:27]} 61. Rb6 {Weighted Error Value: White=0.18 (very precise) /Black=0.17 (very precise)} 1-0

[Event "Mitropa Cup Open 2022"]
[Site "Corte"]
[Date "2022.05.07"]
[Round "8.3"]
[White "Gaehwiler, Gabriel"]
[Black "Koelle, Tobias"]
[Result "1/2-1/2"]
[ECO "A40"]
[WhiteElo "2418"]
[BlackElo "2431"]
[Annotator "TA"]
[PlyCount "116"]
[EventDate "2022.04.30"]
[EventType "team-tourn"]
[EventCountry "FRA"]
[SourceTitle "playchess.com"]
[Source "ChessBase"]
[SourceQuality "1"]
[WhiteTeam "Switzerland"]
[BlackTeam "Germany"]
[WhiteTeamCountry "SUI"]
[BlackTeamCountry "GER"]
[TimeControl "40/5400+30:1800+30"]

{[%evp 14,116,0,6,4,0,0,-19,-13,-18,-19,-63,-22,-34,-9,-4,0,0,0,0,0,0,0,0,19,13,5,12,2,10,9,0,0,0,0,0,0,0,0,0,46,29,78,60,77,77,77,66,78,78,77,77,77,51,58,58,65,58,58,58,77,77,84,84,100,77,100,77,100,0,100,100,100,100,100,100,100,100,100,100,100,77,100,0,100,100,100,100,100,100,100,100,100,100,100,100,100,100,100,100,100,0,139,86,139]} 1. d4 {[%emt 0:00:20]} Nf6 {[%emt 0:00:06]} 2. c4 {[%emt 0:00:29]} e6 {[%emt 0:00:04]} 3. g3 {[%emt 0:01:09]} Bb4+ {[%emt 0:00:07]} 4. Bd2 {[%emt 0:05:55]} Be7 {[%emt 0:00:47]} 5. Bg2 {[%emt 0:02:37]} d5 {[%emt 0:00:13]} 6. Nf3 {[%emt 0:00:21]} c6 {[%emt 0:00:04]} 7. b3 {[%emt 0:15:39]} O-O {[%emt 0:03:46]} 8. O-O {[%emt 0:00:20]} Nbd7 {[%emt 0:00:06] E11: Bogo-Indian.} 9. a4 {[%emt 0:07:43] [#]} b6 $146 {[%emt 0:02:52]} ({Predecessor:} 9... a5 10. Nc3 b6 11. cxd5 cxd5 12. Nb5 Bb7 13. Bf4 Nh5 14. Bc7 Qc8 15. Rc1 Ba6 16. Nd6 Bxd6 17. Bxd6 Qb7 18. Rc7 {1-0 (18) Matveev,V (2368)-Nilsen,T (2146) Chess.com INT 2020}) 10. cxd5 {[%emt 0:05:04]} cxd5 {[%emt 0:00:42] The position is equal.} 11. b4 {[%emt 0:00:12]} Ne4 {[%emt 0:01:51]} 12. Be1 {[%emt 0:07:40]} Bd6 {[%emt 0:02:44]} 13. b5 {[%emt 0:02:03]} a6 {[%emt 0:01:55] Black wants to play ...axb5.} 14. Nc3 {[%emt 0:04:25]} f5 {[%emt 0:02:52]} 15. Qb3 {[%emt 0:01:41][%cal Oc3d5]} Bb7 {[%emt 0:02:42]} 16. bxa6 {[%emt 0:00:37]} Bxa6 {[%emt 0:01:06]} ({Resist} 16... Rxa6 17. Nb5 $14) 17. Nb5 {[%emt 0:00:31]} Bxb5 {[%emt 0:01:30]} 18. Qxb5 {[%emt 0:01:48]} Ra7 {[%emt 0:04:58]} 19. Bb4 {[%emt 0:03:25]} Qe7 {[%emt 0:07:00]} 20. Bxd6 {[%emt 0:07:12]} Qxd6 {[%emt 0:00:03]} 21. Rfc1 Rc7 {[%emt 0:04:44] Inhibits Rc6.} 22. Ne5 {[%emt 0:15:14]} Nxe5 {[%emt 0:03:21]} 23. dxe5 {[%emt 0:00:27]} Qxe5 {[%emt 0:00:24] [#] Hoping for ...Nc3.} 24. Bxe4 {[%emt 0:04:52]} fxe4 {[%emt 0:23:45]} 25. Qxb6 {[%emt 0:00:07]} Rcf7 {[%emt 0:01:05]} 26. Rf1 {[%emt 0:02:42]} d4 {[%emt 0:02:51]} (26... Rxf2 $11 27. Rxf2 Qxa1+ 28. Kg2 Rxf2+ 29. Kxf2 Kf7) 27. Rab1 {[%emt 0:01:48][%cal Ba1b1,Bb1b5,Bb5e5][%mdl 32]} e3 {[%emt 0:06:32]} (27... Qd5 $11) 28. f3 {[%emt 0:01:36]} d3 {[%emt 0:09:27]} 29. Rb5 {[%emt 0:00:27]} Qf6 {[%emt 0:00:04]} 30. Qxe3 {[%emt 0:00:30]} dxe2 31. Qxe2 {[%emt 0:01:12]} Qd4+ {[%emt 0:00:24]} 32. Kg2 {[%emt 0:01:32] Threatens to win with a5.} Qxa4 {[%emt 0:00:05]} 33. Re5 {[%emt 0:00:26]} Rc8 {[%emt 0:05:26] [#] Strongly threatening ...Rc2.} 34. Rf2 {[%emt 0:00:25]} ({Avoid the trap} 34. Rxe6 $2 Rc2 35. Qxc2 (35. Re8+ $2 Rf8 $19) 35... Qxc2+ $19) 34... Qc4 {[%emt 0:00:11]} 35. Rxe6 {[%emt 0:00:21]} Qxe2 {[%emt 0:00:05]} 36. Rfxe2 $14 {[%emt 0:00:06][%mdl 4096] Endgame KRR-KRR} h6 {[%emt 0:00:12]} 37. g4 {[%emt 0:03:10]} Rcf8 {[%emt 0:00:38]} 38. R2e3 {[%emt 0:00:05]} Kh7 {[%emt 0:02:20][%cal Oh6h5]} 39. h4 {[%emt 0:02:21]} Rf6 {[%emt 0:01:20]} 40. Re7 {[%emt 0:01:00]} R6f7 {[%emt 0:00:05]} 41. R7e6 {[%emt 0:04:47] White is more active.} Rf6 $1 {[%emt 0:00:59]} 42. R6e5 {[%emt 0:00:53]} Rd6 {[%emt 0:01:30]} 43. Kg3 {[%emt 0:02:17]} Rfd8 {[%emt 0:00:47]} 44. Re7 {[%emt 0:00:52]} Rd3 {[%emt 0:00:01]} 45. Rxd3 {[%emt 0:01:06]} Rxd3 $16 {[%emt 0:00:49] KR-KR} 46. Ra7 {[%emt 0:00:08]} Rd1 47. Kg2 {[%emt 0:00:04]} Rd4 {[%emt 0:01:04][%cal Oh6h5]} 48. Kg3 {[%emt 0:00:15]} Rd1 $1 {[%emt 0:00:00]} 49. Rb7 {[%emt 0:00:13]} Rc1 50. Rb6 Rc4 {[%emt 0:00:55]} 51. h5 {[%emt 0:00:39]} Rc1 {[%emt 0:00:49]} 52. Rb7 {[%emt 0:00:06]} Rc4 {[%emt 0:00:28]} 53. Rb3 {[%emt 0:00:21]} Rd4 {[%emt 0:00:22]} 54. Re3 {[%emt 0:00:03]} Ra4 {[%emt 0:00:19]} 55. Re4 {[%emt 0:00:04]} Ra7 {[%emt 0:00:20]} 56. Re5 {[%emt 0:00:28]} Ra4 {[%emt 0:00:11]} 57. Re4 {[%emt 0:00:05]} Ra7 {[%emt 0:00:03]} 58. Kh4 {[%emt 0:00:11]} (58. Re8 $142) 58... Ra1 {[%emt 0:00:33] Weighted Error Value: White=0.12 (very precise) /Black=0.06 (flawless)} ({Black should try} 58... Ra3) 1/2-1/2